bitfinex-derivatives/quotes_BTCF0:USTF0_20250720
["timestamp","ask_amount","ask_price","bid_price","bid_amount"]
[1752982642658,0.04801,118210.0,118200.0,0.43328828]
[1752982642858,0.2117011,118210.0,118200.0,0.79408828]
[1752982643061,0.2117011,118210.0,118200.0,0.2633154]
[1752982643358,0.2171111,118210.0,118200.0,0.2633154]
[1752982643557,0.2171111,118210.0,118200.0,0.43328828]
[1752982643758,0.2171111,118210.0,118200.0,0.2633154]
[1752982644356,0.2171111,118210.0,118200.0,0.43328828]
[1752982644562,0.2171111,118210.0,118200.0,0.79408828]
[1752982644866,0.2171111,118210.0,118200.0,0.2633154]
[1752982645265,0.2171111,118210.0,118200.0,0.43328828]
[1752982645660,0.78557398,118210.0,118200.0,0.03061]
[1752982645854,0.6156011,118210.0,118200.0,0.03061]
[1752982646055,0.78557398,118210.0,118200.0,0.1997254]
[1752982646562,0.78557398,118210.0,118200.0,0.03061]
[1752982647066,0.78557398,118210.0,118200.0,0.02861]
[1752982647262,0.6156011,118210.0,118200.0,0.004]
[1752982647467,0.78557398,118210.0,118200.0,0.004]
[1752982647862,0.80533016,118210.0,118200.0,0.004]
[1752982649669,0.2032697,118190.0,118180.0,0.32868332]
[1752982649871,0.63385588,118190.0,118180.0,0.53818732]
[1752982650070,0.63385588,118190.0,118180.0,0.7326002]
[1752982650267,0.63385588,118190.0,118180.0,0.56262732]
[1752982650462,0.63385866,118190.0,118180.0,0.56262732]
[1752982650968,0.63385866,118190.0,118180.0,0.39748332]
[1752982651363,0.70172575,118190.0,118180.0,0.56662732]
[1752982651972,0.70172575,118190.0,118180.0,0.57062732]
[1752982652666,0.70172575,118190.0,118180.0,0.27892732]
[1752982652863,0.70172575,118190.0,118180.0,0.10978332]
[1752982653062,0.70172575,118190.0,118180.0,0.27892732]
[1752982653372,0.70172575,118190.0,118180.0,0.10978332]
[1752982653676,0.70172575,118190.0,118180.0,0.27892732]
[1752982655373,0.65572575,118190.0,118180.0,0.4489002]
[1752982655575,1.44193866,118190.0,118180.0,0.4489002]
[1752982656672,0.58785866,118190.0,118180.0,0.4489002]
[1752982657271,0.58785866,118190.0,118180.0,0.27892732]
[1752982657474,0.58785866,118190.0,118180.0,0.4489002]
[1752982659980,0.60676866,118190.0,118180.0,0.4489002]
[1752982660671,0.61217866,118190.0,118180.0,0.4489002]
[1752982660873,0.25137866,118190.0,118180.0,0.4489002]
[1752982661074,0.61217866,118190.0,118180.0,0.4489002]
[1752982661271,0.22995866,118190.0,118180.0,0.4489002]
[1752982661467,0.22705866,118190.0,118180.0,0.8097002]
[1752982661671,0.2072997,118190.0,118180.0,0.8097002]
[1752982661866,0.22704868,118190.0,118180.0,0.63972732]
[1752982662079,0.2072997,118190.0,118180.0,0.8097002]
[1752982662975,0.2072997,118190.0,118180.0,0.63972732]
[1752982663174,0.2101997,118190.0,118180.0,0.8097002]
[1752982663481,0.2262097,118190.0,118180.0,0.8097002]
[1752982665078,0.2101997,118190.0,118180.0,0.8097002]
[1752982665278,0.2101997,118190.0,118180.0,0.63972732]
[1752982665577,0.2101997,118190.0,118180.0,0.8097002]
[1752982666184,0.22995617,118190.0,118180.0,0.8097002]
[1752982666480,0.1920697,118190.0,118180.0,0.8097002]
[1752982666677,0.2101997,118190.0,118180.0,0.8097002]
[1752982666880,0.2262097,118190.0,118180.0,0.8097002]
[1752982669179,0.2262097,118190.0,118180.0,0.10978332]
[1752982669381,0.2316197,118190.0,118180.0,0.2797562]
[1752982669682,0.25137796,118190.0,118180.0,0.4489002]
[1752982671786,0.2763583,118200.0,118190.0,0.2551796]
[1752982671982,0.1870135,118210.0,118200.0,0.1777353]
[1752982672179,0.2292917,118210.0,118200.0,0.95591106]
[1752982672483,0.2292917,118210.0,118200.0,0.78593818]
[1752982673580,0.2292917,118210.0,118200.0,0.6159653]
[1752982673885,0.2448817,118210.0,118200.0,0.78593818]
[1752982674282,0.2448817,118210.0,118200.0,0.42613818]
[1752982674482,0.2448817,118210.0,118200.0,0.2561653]
[1752982674686,0.2448817,118210.0,118200.0,0.42713818]
[1752982675490,0.2448817,118210.0,118200.0,0.2571653]
[1752982675886,0.2630917,118210.0,118200.0,0.42713818]
[1752982676087,0.2686417,118210.0,118200.0,0.42713818]
[1752982676385,0.1917568,118220.0,118210.0,0.3396966]
[1752982676579,0.22602445,118220.0,118210.0,0.3396966]
[1752982676783,0.24978445,118220.0,118210.0,0.2974234]
[1752982676990,0.41975733,118220.0,118210.0,0.2974234]
[1752982677191,0.24978445,118220.0,118210.0,0.46739628]
[1752982677389,0.24423445,118220.0,118210.0,0.2974234]
[1752982677591,0.24423445,118220.0,118210.0,0.46739628]
[1752982677888,0.24978445,118220.0,118210.0,0.46739628]
[1752982678291,0.61058445,118220.0,118210.0,0.2974234]
[1752982678890,0.63226445,118220.0,118210.0,0.2974234]
[1752982679193,0.6135868,118220.0,118210.0,0.2974234]
[1752982679892,0.78355968,118220.0,118210.0,0.2974234]
[1752982680092,0.6135868,118220.0,118210.0,0.2974234]
[1752982680489,0.39906,118230.0,118220.0,0.1690868]
[1752982680697,0.570914,118230.0,118220.0,0.42510968]
[1752982681497,0.5709125,118230.0,118220.0,0.2551368]
[1752982681887,0.78354538,118230.0,118220.0,0.1986568]
[1752982682296,0.78354538,118230.0,118220.0,0.1929568]
[1752982683289,0.78354538,118230.0,118220.0,0.02387]
[1752982683589,0.2028867,118220.0,118210.0,0.2564478]
[1752982683797,1.48533753,118220.0,118210.0,0.2170926]
[1752982684094,1.65531041,118220.0,118210.0,0.2170926]
[1752982684293,1.65531041,118220.0,118200.0,0.1748132]
[1752982684492,0.78357398,118210.0,118200.0,0.03249]
[1752982684692,0.6136011,118210.0,118200.0,0.02387]
[1752982684892,0.78357398,118210.0,118200.0,0.02387]
[1752982685094,0.6136011,118210.0,118200.0,0.02387]
[1752982685795,0.5919211,118210.0,118200.0,0.42513828]
[1752982685993,0.5919211,118210.0,118200.0,0.42613828]
[1752982686496,0.5919211,118210.0,118200.0,0.2561654]
[1752982686692,0.6136011,118210.0,118200.0,0.2561654]
[1752982686897,1.4656811,118210.0,118200.0,0.2561654]
[1752982688094,0.37995083,118220.0,118200.0,0.42799576]
[1752982688300,0.07709778,118220.0,118210.0,0.78592398]
[1752982688494,0.63074458,118220.0,118210.0,0.42512398]
[1752982688692,0.61105763,118220.0,118210.0,0.2551511]
[1752982688893,0.44197083,118220.0,118210.0,0.42512398]
[1752982689197,0.46165935,118220.0,118210.0,0.42512398]
[1752982689399,0.10085903,118220.0,118210.0,0.42512398]
[1752982689586,0.09530903,118220.0,118210.0,0.42512398]
[1752982689790,0.07562083,118220.0,118210.0,0.2551511]
[1752982689990,0.24470763,118220.0,118210.0,0.42512398]
[1752982690193,0.07710047,118220.0,118210.0,0.42512398]
[1752982690396,0.05741083,118220.0,118210.0,0.42512398]
[1752982691195,0.22649763,118220.0,118210.0,0.2551511]
[1752982691401,0.22649763,118220.0,118210.0,0.42512398]
[1752982691802,0.24618825,118220.0,118210.0,0.42512398]
[1752982692001,0.04182083,118220.0,118210.0,0.42612398]
[1752982692295,0.04182083,118220.0,118210.0,0.2561511]
[1752982692496,0.04182083,118220.0,118210.0,0.42612398]
[1752982692692,0.06151197,118220.0,118210.0,0.42612398]
[1752982692893,0.06151197,118220.0,118210.0,0.78692398]
[1752982693296,0.02267,118220.0,118210.0,0.6169511]
[1752982693702,0.02267,118220.0,118210.0,0.78692398]
[1752982693902,0.2101268,118220.0,118210.0,0.9086511]
[1752982694200,0.2101268,118220.0,118210.0,0.71782398]
[1752982694402,0.2101268,118220.0,118210.0,0.5488511]
[1752982694598,0.2101268,118220.0,118210.0,0.71882398]
[1752982695204,0.22981855,118220.0,118210.0,0.71882398]
[1752982696100,0.01969175,118220.0,118210.0,0.71882398]
[1752982696303,0.01969175,118220.0,118210.0,1.07962398]
[1752982696997,0.01969175,118220.0,118210.0,0.9096511]
[1752982697202,0.01969175,118220.0,118210.0,1.07962398]
[1752982697793,0.637093,118230.0,118220.0,0.1690868]
[1752982698000,0.67238255,118230.0,118220.0,0.2551368]
[1752982698302,0.67516255,118230.0,118220.0,0.2551368]
[1752982698504,0.63289145,118230.0,118220.0,0.42510968]
[1752982699300,0.27209145,118230.0,118220.0,0.42510968]
[1752982699501,0.63289145,118230.0,118220.0,0.42510968]
[1752982699802,0.59062235,118230.0,118220.0,0.42510968]
[1752982700004,0.06073955,118230.0,118220.0,0.42510968]
[1752982701096,0.06073955,118230.0,118220.0,0.42610968]
[1752982701401,0.01969955,118230.0,118220.0,0.78690968]
[1752982701803,0.01969955,118230.0,118220.0,0.6169368]
[1752982702095,0.01969955,118230.0,118220.0,0.78690968]
[1752982703000,0.01969955,118230.0,118220.0,0.78790968]
[1752982703306,0.04253955,118230.0,118220.0,0.78790968]
[1752982704409,0.04253955,118230.0,118220.0,0.6179368]
[1752982704601,0.04253955,118230.0,118220.0,0.78790968]
[1752982705002,0.04253955,118230.0,118220.0,0.42710968]
[1752982705399,0.04253955,118230.0,118220.0,0.2571368]
[1752982705603,0.04253955,118230.0,118220.0,0.42710968]
[1752982705811,0.04253955,118230.0,118220.0,0.71880968]
[1752982706204,0.04253955,118230.0,118220.0,0.5488368]
[1752982706405,0.04253955,118230.0,118220.0,0.71880968]
[1752982706911,0.04253955,118230.0,118220.0,0.9096368]
[1752982707112,0.04253955,118230.0,118220.0,1.07960968]
[1752982708210,0.04253955,118230.0,118220.0,0.9096368]
[1752982708613,0.04253955,118230.0,118220.0,1.07960968]
[1752982709516,0.04253955,118230.0,118220.0,0.9096368]
[1752982709814,0.04253955,118230.0,118220.0,1.07960968]
[1752982710713,0.04253955,118230.0,118220.0,1.89544968]
[1752982711712,0.01969955,118230.0,118220.0,1.89544968]
[1752982711920,0.2104012,118240.0,118230.0,0.2555525]
[1752982712216,0.23010822,118240.0,118230.0,0.42552538]
[1752982713018,0.23010822,118240.0,118230.0,0.2555525]
[1752982713204,0.23010822,118240.0,118230.0,0.42552538]
[1752982713811,0.23010822,118240.0,118230.0,0.2555525]
[1752982714012,0.24556822,118240.0,118230.0,0.42552538]
[1752982714318,0.25134822,118240.0,118230.0,0.42552538]
[1752982715317,0.25134822,118240.0,118230.0,0.2555525]
[1752982715515,0.25134822,118240.0,118230.0,0.42552538]
[1752982717017,0.25134822,118240.0,118230.0,0.2555525]
[1752982717219,0.25134822,118240.0,118230.0,0.42552538]
[1752982720221,0.25134822,118240.0,118230.0,0.2555525]
[1752982720421,0.25134822,118240.0,118230.0,0.42552538]
[1752982721022,0.04254702,118240.0,118230.0,0.42552538]
[1752982721420,0.04254702,118240.0,118230.0,0.6163525]
[1752982721621,0.04254702,118240.0,118230.0,0.78632538]
[1752982722124,0.21160522,118240.0,118230.0,0.78632538]
[1752982722325,0.22741522,118240.0,118230.0,0.78732538]
[1752982723326,0.22741522,118240.0,118230.0,0.78832538]
[1752982723625,0.24556522,118240.0,118230.0,0.78832538]
[1752982724327,0.24556522,118240.0,118230.0,0.6183525]
[1752982724529,0.24556522,118240.0,118230.0,0.78832538]
[1752982727427,0.24556522,118240.0,118230.0,0.6183525]
[1752982727628,0.24556522,118240.0,118230.0,0.78832538]
[1752982729022,0.24556522,118240.0,118230.0,0.6183525]
[1752982729223,0.24556522,118240.0,118230.0,0.78832538]
[1752982730027,0.24556522,118240.0,118230.0,0.6183525]
[1752982730229,0.24556522,118240.0,118230.0,0.78832538]
[1752982730728,0.24556522,118240.0,118230.0,0.6183525]
[1752982730928,0.24556522,118240.0,118230.0,0.78832538]
[1752982731531,0.24556522,118240.0,118230.0,0.42752538]
[1752982732533,0.24556522,118240.0,118230.0,0.2575525]
[1752982732727,0.24556522,118240.0,118230.0,0.42752538]
[1752982732928,0.24556522,118240.0,118230.0,0.2575525]
[1752982733123,0.8220541,118240.0,118230.0,0.2575525]
[1752982733324,0.65208122,118240.0,118230.0,0.2575525]
[1752982733729,0.27280522,118240.0,118230.0,0.42752538]
[1752982733929,0.25112522,118240.0,118230.0,0.42752538]
[1752982734331,0.27280522,118240.0,118230.0,0.2565525]
[1752982734526,0.27280522,118240.0,118230.0,0.2555525]
[1752982735126,0.4427781,118240.0,118230.0,0.2555525]
[1752982735731,0.27280522,118240.0,118230.0,0.2555525]
[1752982735932,0.8035781,118240.0,118230.0,0.2555525]
[1752982736132,0.4427781,118240.0,118230.0,0.2555525]
[1752982736734,0.27280522,118240.0,118230.0,0.2555525]
[1752982736935,0.4210981,118240.0,118230.0,0.2555525]
[1752982737631,0.25112522,118240.0,118230.0,0.2555525]
[1752982737833,0.4210981,118240.0,118230.0,0.2555525]
[1752982738730,0.21160522,118240.0,118230.0,0.2555525]
[1752982739331,0.22690522,118240.0,118230.0,0.2555525]
[1752982739533,0.22690522,118240.0,118230.0,0.42552538]
[1752982739732,0.22973522,118240.0,118230.0,0.42552538]
[1752982740031,0.24531522,118240.0,118230.0,0.42552538]
[1752982741336,0.24531522,118240.0,118230.0,0.2555525]
[1752982741536,0.24531522,118240.0,118230.0,0.42552538]
[1752982742136,0.24531522,118240.0,118230.0,0.2555525]
[1752982742732,0.4425281,118240.0,118230.0,0.2555525]
[1752982743134,0.27255522,118240.0,118230.0,0.2555525]
[1752982743332,0.4425281,118240.0,118230.0,0.2555525]
[1752982743531,0.8033281,118240.0,118230.0,0.2555525]
[1752982744138,0.82190455,118240.0,118230.0,0.2555525]
[1752982744335,0.65193167,118240.0,118230.0,0.2555525]
[1752982744536,0.82190455,118240.0,118230.0,0.2555525]
[1752982746836,0.65193167,118240.0,118230.0,0.2555525]
[1752982747037,0.82190455,118240.0,118230.0,0.2555525]
[1752982747232,0.82178661,118240.0,118230.0,0.2555525]
[1752982747429,0.65181373,118240.0,118230.0,0.2555525]
[1752982747634,0.46098661,118240.0,118230.0,0.2555525]
[1752982748237,0.82178661,118240.0,118230.0,0.2555525]
[1752982749838,0.65181373,118240.0,118230.0,0.2555525]
[1752982750240,0.82178661,118240.0,118230.0,0.2555525]
[1752982750738,0.65181373,118240.0,118230.0,0.2555525]
[1752982750938,0.82178661,118240.0,118230.0,0.2555525]
[1752982751438,0.65181373,118240.0,118230.0,0.2555525]
[1752982755339,0.1690725,118230.0,118220.0,0.00526]
[1752982755538,0.2541068,118220.0,118210.0,0.2136995]
[1752982755739,0.80446876,118220.0,118210.0,0.2136995]
[1752982756132,0.80446876,118220.0,118210.0,0.2163795]
[1752982756341,0.80446876,118220.0,118210.0,0.06343]
[1752982756342,0.8233193,118220.0,118210.0,0.06343]
[1752982756538,0.8233193,118220.0,118210.0,0.02377]
[1752982756733,0.65334642,118220.0,118210.0,0.02377]
[1752982756946,0.8233193,118220.0,118210.0,0.1928711]
[1752982757541,0.8233193,118220.0,118210.0,0.02377]
[1752982757742,0.65334642,118220.0,118210.0,0.1981311]
[1752982757942,0.8233193,118220.0,118210.0,0.1981311]
[1752982758247,0.65334642,118220.0,118210.0,0.1981311]
[1752982758442,0.8233193,118220.0,118210.0,0.02903]
[1752982758944,0.8233193,118220.0,118210.0,0.1981311]
[1752982759548,0.63449588,118220.0,118210.0,0.2137011]
[1752982759842,0.63449588,118220.0,118210.0,0.2163811]
[1752982760037,0.63449588,118220.0,118210.0,0.2325311]
[1752982760744,0.80446876,118220.0,118210.0,0.2325311]
[1752982761145,0.63449588,118220.0,118210.0,0.2325311]
[1752982762238,0.80446876,118220.0,118210.0,0.2325311]
[1752982762439,0.63449588,118220.0,118210.0,0.2325311]
[1752982763745,0.80446876,118220.0,118210.0,0.2325311]
[1752982767648,0.63449588,118220.0,118210.0,0.2325311]
[1752982767847,0.80446876,118220.0,118210.0,0.2325311]
[1752982769242,0.42407968,118220.0,118210.0,0.2325311]
[1752982769442,0.78487968,118220.0,118210.0,0.2325311]
[1752982769749,0.6149068,118220.0,118210.0,0.2325311]
[1752982769949,0.8043417,118220.0,118210.0,0.2325311]
[1752982770251,0.78487968,118220.0,118210.0,0.2325311]
[1752982771150,0.80434176,118220.0,118210.0,0.2325311]
[1752982771551,0.63436888,118220.0,118210.0,0.2325311]
[1752982771751,0.80434176,118220.0,118210.0,0.2325311]
[1752982772150,0.63436888,118220.0,118210.0,0.2325311]
[1752982772347,0.80434176,118220.0,118210.0,0.2325311]
[1752982772749,0.63436888,118220.0,118210.0,0.2325311]
[1752982773149,0.80434176,118220.0,118210.0,0.2325311]
[1752982773348,0.63436888,118220.0,118210.0,0.2325311]
[1752982773649,0.80434176,118220.0,118210.0,0.2325311]
[1752982774953,0.76192797,118220.0,118210.0,0.36009019]
[1752982775348,0.76192797,118220.0,118210.0,0.2325311]
[1752982775549,0.88948706,118220.0,118210.0,0.36009019]
[1752982777355,0.63436888,118220.0,118210.0,0.36009019]
[1752982777653,0.88948706,118220.0,118210.0,0.36009019]
[1752982779150,0.63436888,118220.0,118210.0,0.36009019]
[1752982779346,0.88948706,118220.0,118210.0,0.36009019]
[1752982779547,1.51844797,118220.0,118210.0,0.36009019]
[1752982779749,1.64600706,118220.0,118210.0,0.36009019]
[1752982781054,1.39088888,118220.0,118210.0,0.2325311]
[1752982781250,1.51844797,118220.0,118210.0,0.2325311]
[1752982781445,1.51844797,118220.0,118210.0,0.36009019]
[1752982781848,1.39088888,118220.0,118210.0,0.36009019]
[1752982782551,1.39088888,118220.0,118210.0,0.38448019]
[1752982782854,1.51844797,118220.0,118210.0,0.2569211]
[1752982783152,1.51844797,118220.0,118210.0,0.38448019]
[1752982783553,1.51844797,118220.0,118210.0,0.36009019]
[1752982784655,1.51844797,118220.0,118210.0,0.2325311]
[1752982784856,1.51844797,118220.0,118210.0,0.36009019]
[1752982785957,1.51844797,118220.0,118210.0,0.2325311]
[1752982786250,1.39088888,118220.0,118210.0,0.06343]
[1752982786457,1.64600706,118220.0,118210.0,0.19098909]
[1752982786650,1.64600706,118220.0,118210.0,0.06343]
[1752982786850,1.64600706,118220.0,118210.0,0.19098909]
[1752982787051,1.64600706,118220.0,118210.0,0.15132909]
[1752982787358,1.39088888,118220.0,118210.0,0.32043009]
[1752982787558,1.64600706,118220.0,118210.0,0.32043009]
[1752982787952,1.64600706,118220.0,118210.0,0.15132909]
[1752982788154,1.64600706,118220.0,118210.0,0.02932]
[1752982788354,1.39088888,118220.0,118210.0,0.02932]
[1752982788553,1.39088888,118220.0,118210.0,0.32598019]
[1752982788755,1.39088888,118220.0,118210.0,0.15687909]
[1752982788956,1.64600706,118220.0,118210.0,0.15687909]
[1752982789469,1.64600706,118220.0,118210.0,0.32598019]
[1752982789762,1.64600706,118220.0,118210.0,0.15687909]
[1752982790259,1.39088888,118220.0,118210.0,0.15687909]
[1752982790561,1.64544706,118220.0,118210.0,0.34219009]
[1752982790761,1.51788797,118220.0,118210.0,0.34219009]
[1752982791166,1.39032888,118220.0,118210.0,0.34219009]
[1752982791352,1.64544706,118220.0,118210.0,0.34219009]
[1752982791558,1.39032888,118220.0,118210.0,0.34219009]
[1752982791760,1.64544706,118220.0,118210.0,0.34219009]
[1752982792164,1.51788797,118220.0,118210.0,0.34219009]
[1752982792661,1.64544706,118220.0,118210.0,0.34219009]
[1752982792857,1.64544706,118220.0,118210.0,0.214631]
[1752982793152,1.64544706,118220.0,118210.0,0.34219009]
[1752982793364,1.64544706,118220.0,118210.0,0.17308909]
[1752982794562,1.66415486,118220.0,118210.0,0.04553]
[1752982794767,1.40903668,118220.0,118210.0,0.17308909]
[1752982794968,1.66415486,118220.0,118210.0,0.17308909]
[1752982795666,1.40903668,118220.0,118210.0,0.34219009]
[1752982795968,1.53659577,118220.0,118210.0,0.34219009]
[1752982796267,1.66415486,118220.0,118210.0,0.04553]
[1752982796462,1.66415486,118220.0,118210.0,0.34219019]
[1752982796663,1.66415486,118220.0,118210.0,0.17308909]
[1752982797862,1.66415486,118220.0,118210.0,0.04553]
[1752982798160,1.66415486,118220.0,118210.0,0.17308909]
[1752982799068,0.59212668,118220.0,118210.0,0.38350019]
[1752982799268,0.81759988,118220.0,118210.0,0.51105928]
[1752982799570,0.06223988,118220.0,118210.0,0.87185928]
[1752982799972,0.81755988,118220.0,118210.0,1.20185928]
[1752982800271,0.79348988,118220.0,118210.0,0.87185928]
[1752982800475,0.03816988,118220.0,118210.0,1.52355928]
[1752982800870,0.0187078,118220.0,118210.0,0.9084411]
[1752982801071,0.0187078,118220.0,118210.0,1.38843977]
[1752982801368,0.0187078,118220.0,118210.0,1.55762377]
[1752982801672,0.0187078,118220.0,118210.0,1.56062377]
[1752982801868,0.0187078,118220.0,118210.0,1.3906251]
[1752982802070,0.0187078,118220.0,118210.0,1.56062377]
[1752982802470,1.08364855,118240.0,118230.0,0.2039524]
[1752982802771,1.08364855,118240.0,118230.0,0.42538107]
[1752982802974,1.04134055,118240.0,118230.0,0.42538107]
[1752982803162,1.04134055,118240.0,118230.0,0.2553824]
[1752982803363,1.04134055,118240.0,118230.0,0.42538107]
[1752982803967,1.04674055,118240.0,118230.0,0.42538107]
[1752982804167,1.04674055,118240.0,118230.0,0.2553824]
[1752982804369,1.04674055,118240.0,118230.0,0.42538107]
[1752982804572,1.06842055,118240.0,118230.0,0.42538107]
[1752982804872,0.31338055,118240.0,118230.0,0.42538107]
[1752982805173,1.06818055,118240.0,118230.0,0.42538107]
[1752982805369,1.42898055,118240.0,118230.0,0.42538107]
[1752982805572,1.42898055,118240.0,118230.0,0.2553824]
[1752982805769,1.59897922,118240.0,118230.0,0.2553824]
[1752982805975,1.42898055,118240.0,118230.0,0.2553824]
[1752982807779,1.42898055,118240.0,118230.0,0.06337]
[1752982807976,1.59897922,118240.0,118230.0,0.06337]
[1752982808567,1.42898055,118240.0,118230.0,0.2324423]
[1752982808772,1.59897922,118240.0,118230.0,0.2324423]
[1752982809178,1.42898055,118240.0,118230.0,0.2324423]
[1752982809487,1.59897922,118240.0,118230.0,0.06337]
[1752982810295,1.42898055,118240.0,118230.0,0.06337]
[1752982810486,1.59897922,118240.0,118230.0,0.06337]
[1752982810794,1.59897922,118240.0,118230.0,0.2324424]
[1752982811090,1.59897922,118240.0,118230.0,0.04754]
[1752982811484,0.2525424,118230.0,118220.0,0.31511]
[1752982811686,0.78334107,118230.0,118220.0,0.5057867]
[1752982811991,0.78334107,118230.0,118220.0,0.5241567]
[1752982812293,0.6133424,118230.0,118220.0,0.2553967]
[1752982812490,1.3673424,118230.0,118220.0,0.2553967]
[1752982814989,1.0062624,118230.0,118220.0,0.2553967]
[1752982815789,1.0062624,118230.0,118220.0,0.42539537]
[1752982816492,1.0062624,118230.0,118220.0,0.2553967]
[1752982820694,1.02548644,118230.0,118220.0,0.2553967]
[1752982820882,1.55628511,118230.0,118220.0,0.03992]
[1752982821193,0.2535466,118220.0,118210.0,0.42719235]
[1752982821391,0.74190445,118220.0,118210.0,0.44239235]
[1752982821591,0.2318666,118220.0,118210.0,0.46506235]
[1752982821794,0.5709266,118220.0,118210.0,0.46506235]
[1752982821997,0.69848445,118220.0,118210.0,0.46506235]
[1752982822196,0.9628866,118220.0,118210.0,0.46506235]
[1752982823886,1.09044445,118220.0,118210.0,0.46506235]
[1752982824392,1.0063066,118220.0,118210.0,0.46506235]
[1752982824591,1.11218445,118220.0,118210.0,0.46506235]
[1752982825292,1.11218445,118220.0,118210.0,0.3375045]
[1752982825490,1.11218445,118220.0,118210.0,0.46506235]
[1752982826187,1.51390168,118220.0,118210.0,0.46506235]
[1752982826491,1.49222168,118220.0,118210.0,0.46506235]
[1752982828796,1.36466383,118220.0,118210.0,0.46506235]
[1752982828997,1.49222168,118220.0,118210.0,0.46506235]
[1752982830196,1.49222168,118220.0,118210.0,0.3375045]
[1752982830398,1.47298445,118220.0,118210.0,0.46506235]
[1752982831198,1.3671066,118220.0,118210.0,0.46506235]
[1752982831500,1.49466445,118220.0,118210.0,0.46506235]
[1752982832795,1.3671066,118220.0,118210.0,0.46506235]
[1752982833198,1.49466445,118220.0,118210.0,0.46506235]
[1752982833603,1.3671066,118220.0,118210.0,0.3375045]
[1752982833799,1.11218445,118220.0,118210.0,0.46506235]
[1752982834695,0.9846266,118220.0,118210.0,0.46506235]
[1752982835002,1.11030445,118220.0,118210.0,0.46506235]
[1752982835198,1.11030445,118220.0,118210.0,0.3375045]
[1752982835401,1.11030445,118220.0,118210.0,0.46506235]
[1752982835696,1.47110445,118220.0,118210.0,0.46506235]
[1752982836001,1.11030445,118220.0,118210.0,0.46506235]
[1752982836204,0.9827466,118220.0,118210.0,0.46506235]
[1752982836394,1.11030445,118220.0,118210.0,0.46506235]
[1752982836700,1.11030445,118220.0,118210.0,0.3375045]
[1752982836902,1.11030445,118220.0,118210.0,0.46506235]
[1752982838405,0.9827466,118220.0,118210.0,0.46506235]
[1752982838605,1.11030445,118220.0,118210.0,0.46506235]
[1752982839706,0.9827466,118220.0,118210.0,0.46506235]
[1752982839906,1.11030445,118220.0,118210.0,0.46506235]
[1752982840304,0.9827466,118220.0,118210.0,0.46506235]
[1752982840505,1.11030445,118220.0,118210.0,0.46506235]
[1752982840802,1.13198445,118220.0,118210.0,0.46506235]
[1752982841402,1.13198445,118220.0,118210.0,0.44239235]
[1752982841604,1.13198445,118220.0,118210.0,0.3148345]
[1752982841805,1.0044266,118220.0,118210.0,0.44239235]
[1752982842104,1.27831969,118220.0,118210.0,0.02288]
[1752982842305,1.27831969,118220.0,118200.0,0.2342614]
[1752982842306,0.2535609,118210.0,118200.0,0.2342614]
[1752982842509,0.74191875,118210.0,118200.0,0.2113814]
[1752982843411,0.74191875,118210.0,118200.0,0.2352614]
[1752982843594,0.74191875,118210.0,118200.0,0.2362614]
[1752982843906,0.6143609,118210.0,118200.0,0.2362614]
[1752982844110,0.74191875,118210.0,118200.0,0.36381925]
[1752982844607,0.74191875,118210.0,118200.0,0.2362614]
[1752982844913,0.6143609,118210.0,118200.0,0.2362614]
[1752982845212,0.78447803,118210.0,118200.0,0.2362614]
[1752982847004,0.6143609,118210.0,118200.0,0.2362614]
[1752982847206,0.78447803,118210.0,118200.0,0.2362614]
[1752982849303,0.80360712,118210.0,118200.0,0.2362614]
[1752982851212,0.78447803,118210.0,118200.0,0.2362614]
[1752982853111,0.6143609,118210.0,118200.0,0.2362614]
[1752982854415,0.6143609,118210.0,118200.0,0.1939839]
[1752982854914,0.78447803,118210.0,118200.0,0.1939839]
[1752982857511,0.78447803,118210.0,118200.0,0.002]
[1752982857712,0.6143609,118210.0,118200.0,0.1957853]
[1752982857913,0.78447803,118210.0,118200.0,0.1957853]
[1752982858511,0.78447803,118210.0,118200.0,0.02667]
[1752982858912,0.78447803,118210.0,118200.0,0.1957853]
[1752982858913,0.6143609,118210.0,118200.0,0.1957853]
[1752982859114,0.78447803,118210.0,118200.0,0.1957853]
[1752982861415,0.6143609,118210.0,118200.0,0.1957853]
[1752982861617,0.78447803,118210.0,118200.0,0.1957853]
[1752982862916,0.6143609,118210.0,118200.0,0.1957853]
[1752982863214,0.78447803,118210.0,118200.0,0.1957853]
[1752982863613,0.86983995,118210.0,118200.0,0.002]
[1752982864023,0.88881654,118210.0,118200.0,0.002]
[1752982864414,0.2536396,118190.0,118180.0,0.73268817]
[1752982864609,0.9992396,118190.0,118180.0,0.67200552]
[1752982864814,0.9992396,118190.0,118180.0,0.67444552]
[1752982865013,1.12685661,118190.0,118180.0,0.80206253]
[1752982865214,1.12685661,118190.0,118180.0,0.81819253]
[1752982866219,1.12685661,118190.0,118180.0,0.82119253]
[1752982866519,1.12685661,118190.0,118180.0,0.82419253]
[1752982866720,0.9992396,118190.0,118180.0,0.82419253]
[1752982866918,1.12685661,118190.0,118180.0,0.82419253]
[1752982867118,0.38125661,118190.0,118180.0,0.97657954]
[1752982867319,1.12629661,118190.0,118180.0,0.97657954]
[1752982867617,0.9986796,118190.0,118180.0,0.97657954]
[1752982867819,1.12629661,118190.0,118180.0,0.97657954]
[1752982869014,0.9986796,118190.0,118180.0,0.97657954]
[1752982869514,1.12629661,118190.0,118180.0,0.97657954]
[1752982869814,0.9986796,118190.0,118180.0,0.97657954]
[1752982870914,0.9986796,118190.0,118180.0,0.72134552]
[1752982871115,0.9986796,118190.0,118180.0,0.97657954]
[1752982871716,1.37798064,118190.0,118180.0,0.36054552]
[1752982871914,1.01718064,118190.0,118180.0,0.97657954]
[1752982872121,1.14479765,118190.0,118180.0,0.61577954]
[1752982872721,1.14479765,118190.0,118180.0,0.36054552]
[1752982872919,1.01718064,118190.0,118180.0,0.36054552]
[1752982873223,1.01718064,118190.0,118180.0,0.97657954]
[1752982873421,1.14479765,118190.0,118180.0,0.97657954]
[1752982874024,1.14479765,118190.0,118180.0,0.36054552]
[1752982874217,1.14479765,118190.0,118180.0,0.61577954]
[1752982874519,1.14479765,118190.0,118180.0,0.36054552]
[1752982874725,1.14479765,118190.0,118180.0,0.61577954]
[1752982875225,1.14479765,118190.0,118180.0,0.97657954]
[1752982875426,1.01718064,118190.0,118180.0,0.72134552]
[1752982875725,1.14479765,118190.0,118180.0,0.72134552]
[1752982875926,1.14479765,118190.0,118180.0,0.61577954]
[1752982876127,1.01718064,118190.0,118180.0,0.61577954]
[1752982876322,1.01718064,118190.0,118180.0,0.97657954]
[1752982876524,1.01718064,118190.0,118180.0,0.72134552]
[1752982876724,1.14479765,118190.0,118180.0,0.36054552]
[1752982877422,0.29110472,118190.0,118180.0,0.25433032]
[1752982877628,0.41872173,118190.0,118180.0,0.25966032]
[1752982878528,0.29110472,118190.0,118180.0,0.25966032]
[1752982878732,0.41872173,118190.0,118180.0,0.21205722]
[1752982879029,0.77952173,118190.0,118180.0,0.21205722]
[1752982879324,0.77952173,118190.0,118180.0,0.04291332]
[1752982879525,0.77952173,118190.0,118180.0,0.18738722]
[1752982879725,0.77952173,118190.0,118180.0,0.31500423]
[1752982879926,0.77952173,118190.0,118180.0,0.01824332]